bitfinex/quotes_BTCUSD_20241120
["timestamp","ask_amount","ask_price","bid_price","bid_amount"]
[1732134796281,0.27441512,94240.0,94239.0,0.0008554]
[1732134797769,0.38052712,94240.0,94239.0,0.0008554]
[1732134797975,0.27441512,94240.0,94239.0,0.0008554]
[1732134798347,0.3113699,94240.0,94239.0,0.0008554]
[1732134798949,0.3013699,94240.0,94239.0,0.0008554]
[1732134799149,0.4074819,94240.0,94239.0,0.0008554]
[1732134799946,0.3013699,94240.0,94239.0,0.0008554]
[1732134801028,0.1473,94240.0,94239.0,0.1069684]
[1732134804890,0.002,94240.0,94239.0,0.1069684]
[1732134805059,0.002,94240.0,94239.0,0.2069684]
[1732134805268,0.002,94245.0,94244.0,0.206107]
[1732134805460,0.00971196,94248.0,94247.0,0.106104]
[1732134806620,0.00971196,94248.0,94247.0,0.1059953]
[1732134806839,0.01171196,94248.0,94247.0,0.1059953]
[1732134807052,0.01171196,94252.0,94251.0,0.106099]
[1732134807483,0.02171196,94252.0,94251.0,0.106099]
[1732134809803,0.02171196,94252.0,94251.0,0.1491712]
[1732134810013,0.01971196,94252.0,94251.0,0.1491712]
[1732134810919,0.02171196,94252.0,94251.0,0.1491712]
[1732134811376,0.01171196,94252.0,94251.0,0.27028546]
[1732134818733,0.01171244,94253.0,94252.0,0.206098]
[1732134818734,0.00171244,94253.0,94252.0,0.206098]
[1732134826044,0.00171244,94253.0,94252.0,0.106098]
[1732134826723,0.00171244,94253.0,94252.0,0.10715886]
[1732134828042,0.00171244,94253.0,94252.0,0.20715886]
[1732134828254,0.00371244,94253.0,94252.0,0.206098]
[1732134829287,0.00171244,94253.0,94252.0,0.206098]
[1732134836614,0.00371244,94253.0,94252.0,0.206098]
[1732134836816,0.00371244,94253.0,94252.0,0.36749934]
[1732134837018,0.00371244,94253.0,94252.0,0.37749934]
[1732134838625,0.00171244,94253.0,94252.0,0.37749934]
[1732134841035,0.00371244,94253.0,94252.0,0.37749934]
[1732134841242,0.00171244,94253.0,94252.0,0.37749934]
[1732134842109,4.4e-07,94253.0,94252.0,0.37749934]
[1732134844908,4.4e-07,94253.0,94252.0,0.48461446]
[1732134845109,2.4067472,94287.0,94286.0,0.10606]
[1732134845563,2.39703524,94287.0,94286.0,0.26746134]
[1732134846713,2.39703524,94287.0,94286.0,0.22679947]
[1732134847119,2.4067472,94287.0,94286.0,0.22679947]
[1732134847732,2.4067472,94287.0,94286.0,0.26923561]
[1732134849535,2.51386232,94287.0,94286.0,0.10606]
[1732134850091,2.58666232,94287.0,94286.0,0.10606]
[1732134850303,2.66896232,94287.0,94286.0,0.10606]
[1732134850492,2.66896232,94287.0,94284.0,0.106061]
[1732134850723,0.03271196,94285.0,94284.0,0.106061]
[1732134850927,0.13982708,94285.0,94284.0,0.106061]
[1732134851135,0.22172708,94285.0,94284.0,0.106061]
[1732134853727,0.00971196,94282.0,94281.0,0.106065]
[1732134853936,0.0819,94285.0,94284.0,0.106062]
[1732134854147,0.09161196,94285.0,94284.0,0.106062]
[1732134856122,0.22172708,94285.0,94284.0,0.106062]
[1732134856328,0.13861196,94269.0,94268.0,0.10608]
[1732134856568,0.16161196,94269.0,94268.0,0.10608]
[1732134856830,0.00971196,94257.0,94253.0,0.106097]
[1732134857070,0.00971196,94255.0,94254.0,0.106096]
[1732134857313,0.13982708,94255.0,94254.0,0.106096]
[1732134857566,0.18922708,94255.0,94254.0,0.106096]
[1732134857806,0.26872708,94255.0,94254.0,0.106096]
[1732134858920,0.00971196,94253.0,94252.0,0.0008558]
[1732134859151,0.13982708,94253.0,94252.0,0.0008558]
[1732134859733,0.16769979,94253.0,94252.0,0.0008558]
[1732134859975,0.17769979,94253.0,94252.0,0.0008558]
[1732134861468,0.13982708,94253.0,94252.0,0.1069538]
[1732134861709,0.00971196,94255.0,94254.0,0.106096]
[1732134861945,0.0799,94263.0,94259.0,0.10609]
[1732134861946,0.00971196,94263.0,94259.0,0.10609]
[1732134862205,0.00971196,94263.0,94262.0,0.22682647]
[1732134862446,0.00971196,94263.0,94262.0,0.106087]
[1732134862937,0.00971196,94263.0,94262.0,0.212174]
[1732134863431,0.03271196,94263.0,94262.0,0.212174]
[1732134864167,0.023,94263.0,94262.0,0.212174]
[1732134864403,0.023,94263.0,94262.0,0.106087]
[1732134864404,0.03271196,94263.0,94262.0,0.106087]
[1732134864870,0.03271196,94263.0,94262.0,0.22682647]
[1732134865107,0.00971196,94263.0,94262.0,0.22682647]
[1732134865350,0.03271196,94263.0,94262.0,0.106087]
[1732134865593,0.00971196,94263.0,94262.0,0.106087]
[1732134865882,0.00971196,94270.0,94264.0,0.106085]
[1732134866137,2.39703524,94287.0,94258.0,0.106091]
[1732134866138,0.00971196,94275.0,94274.0,0.106073]
[1732134866614,0.00971196,94276.0,94275.0,0.106072]
[1732134870007,0.03271196,94276.0,94275.0,0.106072]
[1732134870447,0.03271196,94276.0,94275.0,0.1069275]
[1732134871097,2.39874624,94287.0,94275.0,0.1069275]
[1732134871098,0.00971196,94279.0,94275.0,0.14917232]
[1732134871312,0.00971196,94276.0,94275.0,0.14917232]
[1732134871731,0.00971196,94279.0,94278.0,0.106069]
[1732134871935,0.023,94284.0,94278.0,0.106069]
[1732134872153,0.023,94284.0,94283.0,0.106063]
[1732134873759,0.00971196,94284.0,94283.0,0.106063]
[1732134877866,2.39874624,94287.0,94284.0,0.106062]
[1732134878092,2.39874624,94287.0,94284.0,0.281262]
[1732134878315,2.29439784,94287.0,94286.0,0.33086]
[1732134878590,2.20954984,94287.0,94286.0,0.45159947]
[1732134878835,2.20954984,94287.0,94286.0,0.40629947]
[1732134879064,2.20954984,94287.0,94286.0,0.32679947]
[1732134880264,2.20954984,94287.0,94286.0,0.22679947]
[1732134880742,2.20954984,94287.0,94286.0,0.32679947]
[1732134881213,2.20954984,94287.0,94286.0,0.45002808]
[1732134883542,2.20954984,94287.0,94286.0,0.5671432]
[1732134883543,2.10348984,94287.0,94286.0,0.5671432]
[1732134883813,2.10348984,94287.0,94286.0,0.5571432]
[1732134884072,2.10348984,94287.0,94286.0,0.36902808]
[1732134885891,2.10348984,94287.0,94286.0,0.24828861]
[1732134886568,2.10348984,94287.0,94286.0,0.10606]
[1732134886779,2.1362018,94287.0,94286.0,0.10606]
[1732134887614,0.03271196,94285.0,94284.0,0.106062]
[1732134887845,0.13982708,94285.0,94284.0,0.106062]
[1732134888033,0.13982708,94285.0,94277.0,0.10607]
[1732134888247,0.00971196,94279.0,94278.0,0.106069]
[1732134888445,0.03271196,94279.0,94278.0,0.106069]
[1732134889063,0.00971196,94279.0,94278.0,0.106069]
[1732134889476,0.08021196,94279.0,94278.0,0.106069]
[1732134889682,0.03271196,94276.0,94275.0,0.0008555]
[1732134889893,0.03271196,94276.0,94275.0,0.1069275]
[1732134890117,0.03271196,94276.0,94275.0,0.0008555]
[1732134890329,0.13982708,94276.0,94275.0,0.0008555]
[1732134890736,0.13982708,94276.0,94275.0,0.1069275]
[1732134890939,0.13982708,94276.0,94275.0,0.0008555]
[1732134892422,0.023,94275.0,94259.0,0.03197938]
[1732134892625,0.03271196,94265.0,94264.0,0.106085]
[1732134895227,0.03271196,94265.0,94264.0,0.1069406]
[1732134897283,0.13331196,94279.0,94278.0,0.106069]
[1732134897576,0.00971196,94279.0,94278.0,0.106069]
[1732134899219,0.00971196,94281.0,94278.0,0.12073947]
[1732134899430,0.00971196,94281.0,94280.0,0.106067]
[1732134900295,0.00971196,94286.0,94285.0,0.106061]
[1732134900553,2.10348984,94287.0,94286.0,0.10606]
[1732134901041,2.10348984,94287.0,94286.0,0.20606]
[1732134901800,2.10348984,94287.0,94286.0,0.32679947]
[1732134905699,1.99742984,94287.0,94286.0,0.49161459]
[1732134907292,1.84894584,94287.0,94286.0,0.57211459]
[1732134907610,1.78530984,94287.0,94286.0,0.57211459]
[1732134907814,1.78530984,94287.0,94286.0,0.40729947]
[1732134908426,1.78530984,94287.0,94286.0,0.51441459]
[1732134908651,1.78530984,94287.0,94286.0,0.52441459]
[1732134912188,1.78530984,94287.0,94286.0,0.51441459]
[1732134914045,1.78530984,94287.0,94286.0,0.43391459]
[1732134914304,1.78530984,94287.0,94286.0,0.32679947]
[1732134918959,1.78530984,94287.0,94286.0,0.52681459]
[1732134919188,1.78530984,94287.0,94286.0,0.52767009]
[1732134919415,1.70046184,94287.0,94286.0,0.52767009]
[1732134919637,1.63682584,94287.0,94286.0,0.52767009]
[1732134919836,1.59440184,94287.0,94286.0,0.52767009]
[1732134920373,1.48834184,94287.0,94286.0,0.52795813]
[1732134921611,1.44591784,94287.0,94286.0,0.52795813]
[1732134921837,1.38228184,94287.0,94286.0,0.52795813]
[1732134922293,1.36106984,94287.0,94286.0,0.52795813]
[1732134922501,1.29743384,94287.0,94286.0,0.52795813]
[1732134922705,1.27622184,94287.0,94286.0,0.52795813]
[1732134923790,1.26952267,94287.0,94286.0,0.52795813]
[1732134923992,0.74658772,94287.0,94286.0,0.6486976]
[1732134924221,0.70416372,94287.0,94286.0,0.52795813]
[1732134924454,0.66173972,94287.0,94286.0,0.52795813]
[1732134924659,0.59810372,94287.0,94286.0,0.52795813]
[1732134925482,0.57689172,94287.0,94286.0,0.52795813]
[1732134926557,0.57689172,94287.0,94286.0,0.40721866]
[1732134926800,0.57689172,94287.0,94286.0,0.32765497]
[1732134929299,0.57689172,94287.0,94286.0,0.44477009]
[1732134929535,0.55567972,94287.0,94286.0,0.44477009]
[1732134929774,0.49204372,94287.0,94286.0,0.52437009]
[1732134930002,0.47083172,94287.0,94286.0,0.52437009]
[1732134930497,0.0017116,94294.0,94288.0,0.21634604]
[1732134930498,3.7e-07,94289.0,94288.0,0.21634604]
[1732134930712,3.7e-07,94289.0,94288.0,0.32317312]
[1732134930945,3.7e-07,94289.0,94288.0,0.32346116]
[1732134931169,0.0017116,94294.0,94293.0,0.33679147]
[1732134931170,9.7e-07,94294.0,94293.0,0.33679147]
[1732134931393,9.7e-07,94294.0,94293.0,0.32316712]
[1732134931894,9.7e-07,94294.0,94293.0,0.32548556]
[1732134932991,0.01418467,94300.0,94299.0,0.33678447]
[1732134933248,0.01418467,94300.0,94299.0,0.44579591]
[1732134938502,0.01418467,94300.0,94299.0,0.48790959]
[1732134939263,0.01418467,94300.0,94299.0,0.60864906]
[1732134939469,0.01142336,94309.0,94302.0,0.216042]
[1732134939470,0.0017114,94309.0,94302.0,0.216042]
[1732134939674,0.0017114,94309.0,94308.0,0.33677447]
[1732134939879,0.0017114,94309.0,94308.0,0.44388959]
[1732134940317,0.0017114,94309.0,94308.0,0.44578017]
[1732134944986,0.0017114,94309.0,94308.0,0.3250407]
[1732134948016,4e-07,94309.0,94308.0,0.3250407]
[1732134951159,4e-07,94309.0,94308.0,0.10792558]
[1732134952402,0.0777004,94310.0,94309.0,0.106034]
[1732134952610,0.0777004,94310.0,94309.0,0.10791765]
[1732134953440,0.08741236,94310.0,94309.0,0.10791765]
[1732134954678,0.00971196,94310.0,94309.0,0.10791765]
[1732134956165,0.00971196,94310.0,94309.0,0.00188365]
[1732134956344,0.15731196,94310.0,94309.0,0.00188365]
[1732134956552,0.15731196,94310.0,94309.0,0.10791765]
[1732134957417,0.15731196,94310.0,94309.0,0.00188365]
[1732134957611,0.15731196,94310.0,94309.0,0.10791765]
[1732134958047,0.13431196,94310.0,94309.0,0.10791765]
[1732134959440,0.0017112,94318.0,94310.0,0.106033]
[1732134959441,0.00971196,94312.0,94310.0,0.106033]
[1732134959708,0.01731196,94311.0,94310.0,0.10777314]
[1732134960166,0.01731196,94311.0,94310.0,0.15031797]
[1732134960620,0.0076,94311.0,94310.0,0.15031797]
[1732134960832,0.01731196,94311.0,94310.0,0.15031797]
[1732134967129,0.01902336,94311.0,94310.0,0.15031797]
[1732134972281,0.0093114,94311.0,94310.0,0.15031797]
[1732134972505,0.0093114,94311.0,94310.0,0.25743309]
[1732134972714,0.0093114,94311.0,94310.0,0.35743309]
[1732134973171,4e-07,94311.0,94310.0,0.35743309]
[1732134973393,4e-07,94311.0,94310.0,0.60198028]
[1732134973602,4e-07,94311.0,94310.0,0.6020103]
[1732134974068,4e-07,94311.0,94310.0,0.36743309]
[1732134974493,4e-07,94311.0,94310.0,0.55513909]
[1732134974702,4e-07,94311.0,94310.0,0.36743309]
[1732134974910,4e-07,94311.0,94310.0,0.55515036]
[1732134975246,4e-07,94311.0,94310.0,0.36743309]
[1732134975454,4e-07,94311.0,94310.0,0.55515036]
[1732134975675,4e-07,94311.0,94310.0,0.36743309]
[1732134975888,4e-07,94311.0,94310.0,0.54515603]
[1732134976107,4e-07,94311.0,94310.0,0.55515603]
[1732134976323,4e-07,94311.0,94310.0,0.36743309]
[1732134976758,4e-07,94311.0,94310.0,0.35743309]
[1732134976983,4e-07,94311.0,94310.0,0.36743309]
[1732134978494,4e-07,94311.0,94310.0,0.35743309]
[1732134978935,4e-07,94311.0,94310.0,0.25031797]
[1732134979794,4e-07,94311.0,94310.0,0.25031797]
[1732134980251,4e-07,94311.0,94310.0,0.25117367]
[1732134980682,0.00971236,94311.0,94310.0,0.10862884]
[1732134980921,0.05881236,94311.0,94310.0,0.20862884]
[1732134981138,0.13891236,94311.0,94310.0,0.20862884]
[1732134981827,0.00971236,94311.0,94310.0,0.20862884]
[1732134984426,0.05601236,94311.0,94310.0,0.20862884]
[1732134985882,4e-07,94311.0,94310.0,0.20862884]
[1732134986088,0.00971236,94311.0,94310.0,0.20862884]
[1732134987209,4e-07,94311.0,94310.0,0.31680424]
[1732134987420,4e-07,94311.0,94310.0,0.31574396]
[1732134990296,4e-07,94311.0,94310.0,0.45665036]
[1732134990536,4e-07,94311.0,94310.0,0.46665036]
[1732134990778,4e-07,94311.0,94310.0,0.32574396]
[1732134992210,4e-07,94311.0,94310.0,0.46654023]
[1732134992450,4e-07,94311.0,94310.0,0.32574396]
[1732134992683,4e-07,94311.0,94310.0,0.46654774]
[1732134992904,4e-07,94311.0,94310.0,0.46654394]
[1732134993417,4e-07,94311.0,94310.0,0.46654022]
[1732134993652,4e-07,94311.0,94310.0,0.32574396]
[1732134993885,4e-07,94311.0,94310.0,0.46654022]
[1732134994121,4e-07,94311.0,94310.0,0.32574396]
[1732134995065,4e-07,94311.0,94310.0,0.37504396]
[1732134995306,4e-07,94311.0,94310.0,0.375332]
[1732134995517,6e-07,94318.0,94317.0,0.216025]
[1732134995734,6e-07,94319.0,94318.0,0.33676347]
[1732134995934,6e-07,94319.0,94318.0,0.58464094]
[1732134996438,0.01,94351.0,94318.0,0.58464094]
[1732134996439,0.1685946,94326.0,94325.0,0.33704351]
[1732134996663,0.0812,94353.0,94332.0,0.216008]
[1732134996955,0.0812,94353.0,94332.0,0.56460206]
[1732134997189,0.01142336,94348.0,94332.0,0.56620181]
[1732134997426,0.01,94367.0,94332.0,0.56620181]
[1732134997427,0.0812,94377.0,94376.0,0.01]
[1732134997670,0.23791196,94377.0,94376.0,0.115959]
[1732134997898,0.09091196,94377.0,94376.0,0.115959]
[1732134998323,0.09091196,94377.0,94376.0,0.11753169]
[1732134998749,0.00971196,94377.0,94376.0,0.11753169]
[1732134998982,0.00971196,94377.0,94376.0,0.16143681]
[1732135001326,0.00971196,94377.0,94376.0,0.16259293]
[1732135001532,0.0912,94390.0,94389.0,0.105944]
[1732135001741,0.0469,94394.0,94393.0,0.11594]
[1732135001951,0.1465,94396.0,94395.0,0.105937]
[1732135002367,0.15621196,94396.0,94395.0,0.11740721]
[1732135002580,0.00971196,94396.0,94395.0,0.11740721]
[1732135003826,0.20655923,94433.0,94404.0,0.01]
[1732135004034,0.20655923,94433.0,94395.0,0.12220968]
[1732135004035,0.023,94422.0,94397.0,0.01]
[1732135004242,0.023,94410.0,94397.0,0.01]
[1732135004459,0.023,94410.0,94402.0,0.105929]
[1732135004460,0.023,94408.0,94402.0,0.105929]
[1732135004668,0.023,94408.0,94403.0,0.105928]
[1732135004883,0.023,94408.0,94403.0,0.10731953]
[1732135005090,0.023,94408.0,94403.0,0.00139153]
[1732135005496,0.023,94408.0,94401.0,0.10593]
[1732135005707,0.023,94408.0,94404.0,0.00139072]
[1732135005917,0.023,94408.0,94403.0,0.105927]
[1732135006122,0.023,94408.0,94404.0,0.00139072]
[1732135006343,0.023,94408.0,94399.0,0.105932]
[1732135006545,0.023,94408.0,94405.0,0.00138647]
[1732135006757,0.023,94408.0,94395.0,0.105937]
[1732135006964,0.1468,94407.0,94406.0,0.00138566]
[1732135007172,0.252724,94407.0,94397.0,0.105935]
[1732135007378,0.252724,94407.0,94383.0,0.01]
[1732135007379,0.002,94396.0,94383.0,0.01]
[1732135007576,0.0696,94396.0,94395.0,0.105937]
[1732135008159,0.06956,94396.0,94395.0,0.105937]
[1732135008375,0.06956,94396.0,94386.0,0.105947]
[1732135008580,0.06956,94396.0,94384.0,0.105949]
[1732135008796,0.06956,94396.0,94387.0,0.105946]
[1732135008994,0.06956,94396.0,94383.0,0.05388363]
[1732135009201,0.06956,94396.0,94359.0,0.115977]
[1732135009202,0.258498,94385.0,94359.0,0.115977]
[1732135009410,0.12073947,94376.0,94367.0,0.105969]
[1732135009622,0.12073947,94376.0,94358.0,0.01]
[1732135009623,0.18441512,94375.0,94362.0,0.105974]
[1732135009825,0.18441512,94375.0,94358.0,0.05333793]
[1732135010044,0.18441512,94375.0,94362.0,0.105974]
[1732135010300,0.18441512,94375.0,94358.0,0.04333793]
[1732135010301,0.0457,94373.0,94358.0,0.04333793]
[1732135010539,0.0457,94373.0,94321.0,0.10602]
[1732135010540,0.023,94350.0,94331.0,0.106009]
[1732135010827,0.023,94348.0,94331.0,0.116008]
[1732135011044,0.023,94346.0,94333.0,0.106007]
[1732135011269,0.12073947,94345.0,94331.0,0.106008]
[1732135011534,0.023,94344.0,94331.0,0.106009]
[1732135011772,0.023,94346.0,94333.0,0.106006]
[1732135011995,0.023,94346.0,94319.0,0.01]
[1732135011996,0.023,94342.0,94319.0,0.01]
[1732135012325,0.22785459,94344.0,94319.0,0.01]
[1732135012326,0.023,94340.0,94327.0,0.106013]
[1732135012563,0.023,94340.0,94319.0,0.01]
[1732135012564,0.14373947,94338.0,94319.0,0.01]
[1732135012818,0.14373947,94338.0,94328.0,0.00116029]
[1732135012819,0.129011,94329.0,94328.0,0.00116029]
[1732135013084,0.129011,94329.0,94310.0,0.0008557]
[1732135013085,0.023,94319.0,94310.0,0.0008557]
[1732135013329,0.22676947,94313.0,94310.0,0.0008557]
[1732135013590,0.13011512,94312.0,94310.0,0.0008557]
[1732135013845,0.1025,94311.0,94310.0,0.0008557]
[1732135014060,0.20961512,94311.0,94310.0,0.0008557]
[1732135014296,0.37188758,94311.0,94310.0,0.0008557]
[1732135014533,0.37188758,94311.0,94291.0,0.0002]
[1732135014534,0.023,94307.0,94291.0,0.0002]
[1732135014777,0.023,94295.0,94291.0,0.0002]
[1732135014991,0.023,94293.0,94291.0,0.0002]
[1732135015223,0.13011512,94292.0,94291.0,0.0002]
[1732135015433,0.27283947,94287.0,94286.0,0.0008555]
[1732135015648,0.48601359,94287.0,94286.0,0.0008555]
[1732135015877,0.40666698,94287.0,94286.0,0.0008555]
[1732135016095,0.37995459,94287.0,94286.0,0.0008555]
[1732135016315,0.44486244,94287.0,94286.0,0.0008555]
[1732135016547,0.41815005,94287.0,94286.0,0.0008555]
[1732135016765,0.37995459,94287.0,94286.0,0.0008555]
[1732135016979,0.023,94287.0,94286.0,0.0008555]
[1732135017206,0.4973,94305.0,94287.0,0.01]
[1732135017207,0.0832,94300.0,94287.0,0.01]
[1732135017416,0.14589,94300.0,94290.0,0.106055]
[1732135017637,0.12073947,94296.0,94286.0,0.0008555]
[1732135017846,0.002,94294.0,94286.0,0.0008555]
[1732135018062,0.002,94287.0,94286.0,0.0008555]
[1732135018279,0.32307412,94287.0,94286.0,0.0008555]
[1732135018528,0.34607412,94287.0,94286.0,0.0008555]
[1732135019170,0.131076,94272.0,94271.0,0.0002]
[1732135019384,0.13011512,94272.0,94271.0,0.0002]
[1732135019877,0.023,94278.0,94271.0,0.0002]
[1732135020094,0.002,94281.0,94271.0,0.0002]
[1732135020095,0.023,94276.0,94271.0,0.0002]
[1732135020306,0.1099,94287.0,94272.0,0.00111949]
[1732135020512,0.023,94283.0,94272.0,0.00111949]
[1732135020718,0.023,94283.0,94275.0,0.106072]
[1732135020719,0.13011512,94283.0,94275.0,0.106072]
[1732135020937,0.0471,94298.0,94275.0,0.01]
[1732135021162,0.0471,94298.0,94276.0,0.00117596]
[1732135021163,0.10711512,94295.0,94276.0,0.00117596]
[1732135021609,0.10711512,94295.0,94276.0,0.106071]
[1732135021849,0.10711512,94295.0,94275.0,0.01]
[1732135022043,0.10711512,94295.0,94289.0,0.106056]
[1732135022246,0.10711512,94295.0,94277.0,0.00118495]
[1732135022247,0.023,94293.0,94277.0,0.10725395]
[1732135022470,0.023,94293.0,94277.0,0.00118495]
[1732135022471,0.023,94291.0,94277.0,0.00118495]
[1732135022682,0.13011512,94291.0,94276.0,0.00118576]
[1732135022893,0.13011512,94291.0,94279.0,0.106067]
[1732135023105,0.13011512,94291.0,94272.0,0.106076]
[1732135023323,0.023,94289.0,94274.0,0.106073]
[1732135023530,0.12073947,94296.0,94271.0,0.0002]
[1732135023531,0.023,94287.0,94275.0,0.00117692]
[1732135023752,0.0471,94298.0,94271.0,0.0002]
[1732135023753,0.023,94285.0,94271.0,0.0002]
[1732135023973,0.023,94283.0,94271.0,0.0002]
[1732135024197,0.023,94281.0,94272.0,0.00112899]
[1732135024416,0.023,94281.0,94271.0,0.106277]
[1732135024417,0.023,94281.0,94271.0,0.0002]
[1732135024627,0.023,94281.0,94279.0,0.106067]
[1732135024839,0.023,94281.0,94271.0,0.0002]
[1732135024840,0.03601151,94281.0,94272.0,0.00112572]
[1732135025099,0.03601151,94281.0,94280.0,0.00111918]
[1732135025100,0.03801151,94281.0,94280.0,0.00111918]
[1732135025335,0.023,94279.0,94271.0,0.0002]
[1732135025547,0.023,94275.0,94271.0,0.0002]
[1732135025787,0.119076,94272.0,94271.0,0.0002]
[1732135025990,0.02671239,94274.0,94271.0,0.0002]
[1732135026203,0.102,94290.0,94272.0,0.106076]
[1732135026428,0.102,94290.0,94252.0,0.1069528]
[1732135026429,0.01,94276.0,94251.0,0.0010559]
[1732135026663,0.01,94283.0,94252.0,0.106098]
[1732135026882,0.01,94277.0,94251.0,0.0010559]
[1732135027121,0.13116033,94282.0,94253.0,0.00109869]
[1732135027122,0.01,94272.0,94253.0,0.00109869]
[1732135027339,0.02,94270.0,94252.0,0.10719161]
[1732135027546,0.11982663,94269.0,94255.0,0.106094]
[1732135027754,0.10711512,94269.0,94255.0,0.106094]
[1732135027970,0.10711512,94269.0,94256.0,0.00117781]
[1732135028188,0.002,94266.0,94256.0,0.00117781]
[1732135028390,0.033,94264.0,94256.0,0.00117781]
[1732135028607,0.023,94256.0,94251.0,0.0010559]
[1732135028835,0.10711512,94255.0,94251.0,0.0010559]
[1732135030146,0.01,94253.0,94251.0,0.0010559]
[1732135030351,0.10711512,94252.0,94251.0,0.0010559]
[1732135030778,0.10711512,94252.0,94251.0,0.5010559]
[1732135030988,0.18454623,94268.0,94251.0,0.5010559]
[1732135030989,0.01,94261.0,94257.0,0.106092]
[1732135031212,0.206072,94276.0,94251.0,0.5010559]
[1732135031213,0.10711512,94260.0,94251.0,0.5010559]
[1732135031494,0.212142,94277.0,94251.0,0.5010559]
[1732135031495,0.1079,94273.0,94251.0,0.5010559]
[1732135031707,0.1076,94273.0,94272.0,0.106076]
[1732135031933,0.079,94293.0,94251.0,0.5010559]
[1732135031934,0.0008559,94285.0,94257.0,0.18454623]
[1732135032160,0.10711512,94284.0,94280.0,0.106066]
[1732135032377,0.0007959,94285.0,94281.0,0.106065]
[1732135032583,0.0007959,94285.0,94284.0,0.106062]
[1732135033451,0.0007359,94285.0,94284.0,0.106062]
[1732135034113,0.0007359,94285.0,94284.0,0.14837875]
[1732135035606,0.0007359,94285.0,94284.0,0.14943929]
[1732135035850,0.0007359,94285.0,94284.0,0.26655441]
[1732135036082,0.0007359,94285.0,94284.0,0.26549387]
[1732135036313,9e-07,94285.0,94284.0,0.27549387]
[1732135036538,9e-07,94285.0,94284.0,0.27749387]
[1732135036777,9e-07,94285.0,94284.0,0.27549387]
[1732135038251,9e-07,94285.0,94284.0,0.26549387]
[1732135038504,9e-07,94285.0,94284.0,0.27549387]
[1732135038761,9e-07,94285.0,94284.0,0.26549387]
[1732135039003,9e-07,94285.0,94284.0,0.27549387]
[1732135039234,9e-07,94285.0,94284.0,0.26549387]
[1732135039485,9e-07,94285.0,94284.0,0.14923465]
[1732135039953,9e-07,94285.0,94284.0,0.25741032]
[1732135040180,9e-07,94285.0,94284.0,0.25620427]
[1732135041883,9e-07,94285.0,94284.0,0.04317265]
[1732135042104,9e-07,94285.0,94284.0,0.0008559]
[1732135042586,9e-07,94285.0,94284.0,0.1069179]
[1732135044580,9e-07,94285.0,94284.0,0.21403302]
[1732135047581,9e-07,94285.0,94284.0,0.1069179]
[1732135050903,9e-07,94285.0,94284.0,0.6069179]
[1732135061292,9e-07,94285.0,94277.0,0.106069]
[1732135061293,0.11,94275.0,94245.0,0.106105]
[1732135061653,0.18454623,94266.0,94234.0,0.0017096]
[1732135061927,0.20381512,94274.0,94261.0,0.106088]
[1732135061928,0.20711512,94265.0,94261.0,0.106088]
[1732135061952,0.20711512,94265.0,94246.0,0.04307425]
[1732135061953,0.1,94265.0,94246.0,0.04307425]
[1732135062181,0.01,94265.0,94261.0,0.106087]
[1732135062349,0.01,94273.0,94266.0,0.106082]
[1732135062556,0.59418165,94292.0,94239.0,0.1069674]
[1732135062557,0.0770009,94285.0,94255.0,0.01]
[1732135062761,0.0770009,94285.0,94253.0,0.18454623]
[1732135062762,9e-07,94285.0,94284.0,0.106062]
[1732135063191,9e-07,94285.0,94283.0,0.106063]
[1732135063403,9e-07,94285.0,94284.0,0.106062]
[1732135063605,9e-07,94285.0,94284.0,0.1069179]
[1732135065091,9e-07,94285.0,94278.0,0.14200144]
[1732135065309,9e-07,94285.0,94284.0,0.106062]
[1732135065519,9e-07,94285.0,94279.0,0.00106057]
[1732135065724,9e-07,94285.0,94284.0,0.106062]
[1732135067049,9e-07,94285.0,94284.0,0.39863556]
[1732135067261,9e-07,94285.0,94284.0,0.40757503]
[1732135069615,9e-07,94285.0,94284.0,0.21317712]
[1732135070058,9e-07,94285.0,94284.0,0.22317712]
[1732135071137,9e-07,94285.0,94284.0,0.32317712]
[1732135075239,9e-07,94285.0,94284.0,0.32392759]
[1732135077494,9e-07,94285.0,94284.0,0.41794716]
[1732135077869,9e-07,94285.0,94284.0,0.32392759]
[1732135078044,9e-07,94285.0,94284.0,0.41795338]
[1732135078484,9e-07,94285.0,94284.0,0.32392759]
[1732135078882,9e-07,94285.0,94284.0,0.03972937]
[1732135079205,0.102,94330.0,94284.0,0.03972937]
[1732135079206,0.0757,94335.0,94306.0,0.01]
[1732135079535,0.0493,94345.0,94343.0,0.105996]
[1732135079773,0.0493,94345.0,94331.0,0.18439791]
[1732135079774,0.01,94351.0,94347.0,0.105991]
[1732135079994,0.01,94351.0,94350.0,0.105988]
[1732135080231,0.0764,94358.0,94348.0,0.10599]
[1732135080456,0.0864,94358.0,94357.0,0.10598]
[1732135081100,0.0764,94358.0,94357.0,0.10598]
[1732135081305,0.157,94363.0,94362.0,0.105974]
[1732135081563,0.1,94368.0,94343.0,0.18439791]
[1732135081779,0.10106063,94368.0,94344.0,0.105995]
[1732135081988,0.01,94366.0,94365.0,0.10597]
[1732135082207,0.10106063,94368.0,94365.0,0.10597]
[1732135082666,0.01,94366.0,94365.0,0.10597]
[1732135083333,0.01,94364.0,94363.0,0.105973]
[1732135083523,0.00306063,94372.0,94352.0,0.105986]
[1732135083524,0.01,94353.0,94352.0,0.105986]
[1732135083750,0.12521203,94371.0,94361.0,0.105975]
[1732135083977,0.01,94369.0,94368.0,0.105967]
[1732135084196,0.01106063,94370.0,94369.0,0.105967]
[1732135084415,0.01,94369.0,94368.0,0.105967]
[1732135084834,0.01,94357.0,94356.0,0.105981]
[1732135085064,0.01,94357.0,94344.0,0.105995]
[1732135085065,0.00106063,94370.0,94369.0,0.105967]
[1732135085293,0.01106063,94370.0,94369.0,0.105967]
[1732135085505,0.01,94365.0,94364.0,0.105971]
[1732135086128,0.01,94363.0,94362.0,0.105973]
[1732135086360,0.01,94366.0,94365.0,0.10597]
[1732135086585,0.01,94355.0,94354.0,0.105983]
[1732135087433,0.01,94355.0,94351.0,0.105986]
[1732135087642,0.01,94355.0,94353.0,0.105984]
[1732135087643,0.00106063,94354.0,94353.0,0.105984]
[1732135088099,0.01,94355.0,94354.0,0.105983]
[1732135089382,0.01,94356.0,94354.0,0.105983]